fUST/lending_fUST_20250125
["ID","MTS","AMOUNT","RATE_DAILY","PERIOD"]
[350271513,1737754244344,-4318.62,0.00019178,2]
[350271514,1737754244353,-254.375619,0.00019178,2]
[350271516,1737754244363,-500.0,0.00019178,2]
[350271518,1737754244374,-500.0,0.00019178,2]
[350271520,1737754244383,-502.25128899,0.00019178,2]
[350271522,1737754244393,-500.0,0.00019178,2]
[350271524,1737754244403,-500.0,0.00019178,2]
[350271526,1737754244412,-1385.08,0.00019178,2]
[350271528,1737754244422,-500.0,0.00019178,2]
[350271529,1737754244434,-502.75302765,0.00019178,2]
[350271531,1737754244444,-400.38532921,0.00019178,2]
[350271533,1737754244456,-99.61467079,0.00019178,2]
[350271535,1737754244466,-281.46694721,0.00019178,2]
[350271538,1737754244488,-218.53305279,0.00019178,2]
[350271540,1737754244498,-783.61,0.00019178,2]
[350271542,1737754244507,-6502.55,0.00019178,2]
[350271544,1737754244517,-684.09,0.00019178,2]
[350271545,1737754244526,-605.1,0.00019178,2]
[350271547,1737754244535,-500.0,0.00019178,2]
[350271549,1737754244545,-500.0,0.00019178,2]
[350271551,1737754244554,-500.0,0.00019178,2]
[350271553,1737754244563,-500.0,0.00019178,2]
[350271554,1737754244573,-500.0,0.00019178,2]
[350271556,1737754244582,-500.0,0.00019178,2]
[350271558,1737754244591,-500.0,0.00019178,2]
[350271560,1737754244600,-3172.92,0.00019178,2]
[350271561,1737754244609,-500.0,0.00019178,2]
[350271563,1737754244619,-5031.19694721,0.00019178,2]
[350271616,1737754246393,-395.0,0.00019131,2]
[350271617,1737754246403,-136.2054098,0.00019178,2]
[350271629,1737755041342,211.272229,0.00013973,2]
[350271724,1737755432540,-300.0,0.00017888,2]
[350271726,1737755432550,-300.0,0.00018069,2]
[350271728,1737755432559,-10977.2935328,0.0001807,2]
[350271730,1737755432568,-2667.07046598,0.00018116,2]
[350271735,1737755432607,-311.41205632,0.00018116,2]
[350271737,1737755432617,-350.637,0.0001822,2]
[350271739,1737755432626,-191.90644368,0.0001874,2]
[350272505,1737755440769,-719.99332579,0.00018553,2]
[350272507,1737755440786,-1958.48919651,0.00018553,2]
[350272509,1737755440796,-19.14098679,0.0001874,2]
[350272511,1737755440808,-1363.95,0.0001874,2]
[350272512,1737755440819,-1647.34529331,0.0001874,2]
[350272514,1737755440830,-5482.82878874,0.0001874,2]
[350272516,1737755440839,-1001.16161547,0.000189,2]
[350272518,1737755440849,-154.1761492,0.00019,2]
[350272520,1737755440858,-153.0,0.00019045,2]
[350272521,1737755440868,-153.0,0.00019049,2]
[350272523,1737755440877,-157.76,0.00019049,2]
[350272525,1737755440886,-421.05793836,0.00019064,2]
[350272526,1737755440896,-195.65960989,0.0001907,2]
[350272528,1737755440905,-300.0,0.000191,8]
[350272530,1737755440914,-1532.64905071,0.00019102,2]
[350272532,1737755440925,-1883.47046116,0.00019102,2]
[350272534,1737755440941,-2754.0,0.00019102,2]
[350272536,1737755440953,-981.6659432,0.00019102,2]
[350272756,1737755443485,-1553.38605745,0.00019102,2]
[350272757,1737755443494,-134.11394255,0.00019135,2]
[350272806,1737755446443,-1065.88605745,0.00019135,2]
[350272808,1737755446453,-434.28,0.0001916,3]
[350272810,1737755446463,-500.0,0.00019164,2]
[350272812,1737755446474,-193.57720131,0.00019169,2]
[350272814,1737755446483,-500.0,0.00019169,2]
[350272816,1737755446494,-460.5323512,0.00019169,2]
[350272818,1737755446503,-172.22213086,0.00019169,2]
[350272820,1737755446512,-500.0,0.00019169,2]
[350272822,1737755446521,-500.0,0.00019169,2]
[350272824,1737755446531,-500.0,0.00019169,2]
[350272827,1737755446540,-500.0,0.00019169,2]
[350272828,1737755446549,-500.0,0.00019169,2]
[350272830,1737755446559,-500.0,0.00019169,2]
[350272832,1737755446568,-500.0,0.00019169,2]
[350272834,1737755446578,-500.0,0.00019169,2]
[350272836,1737755446587,-500.0,0.00019169,2]
[350272838,1737755446596,-500.0,0.00019169,2]
[350272840,1737755446606,-500.0,0.00019169,2]
[350272842,1737755446616,-500.0,0.00019169,2]
[350272844,1737755446625,-500.0,0.00019169,2]
[350272846,1737755446635,-209.38703176,0.00019169,2]
[350272868,1737756022493,220.833133,0.00013973,2]
[350272869,1737756140780,350.59,0.00017502,2]
[350272896,1737756633032,-300.0,0.00018045,2]
[350272897,1737756633042,-12602.33431432,0.00018046,2]
[350272898,1737756633054,-1918.97447528,0.00018046,2]
[350272899,1737756633065,-350.59,0.0001822,2]
[350272900,1737756633075,-2315.0,0.00018626,2]
[350272901,1737756633085,-4003.7984689,0.00018712,2]
[350272902,1737756633109,-5231.36112941,0.00018712,2]
[350272903,1737756633119,-8.6324457,0.000189,2]
[350272907,1737756638427,-797.12200916,0.000189,2]
[350272908,1737756638436,-249.0,0.00018956,2]
[350272909,1737756638446,-153.0,0.00018966,2]
[350272910,1737756638456,-479.00634042,0.00019,2]
[350272911,1737756638466,-195.65960988,0.00019073,2]
[350272912,1737756638487,-854.76,0.00019078,2]
[350272913,1737756638498,-500.0,0.00019099,2]
[350272914,1737756638508,-500.0,0.00019099,2]
[350272916,1737756638518,-355.02,0.00019099,2]
[350272917,1737756638528,-176.41490968,0.000191,2]
[350272919,1737756638542,-1056.08039732,0.000191,2]
[350272921,1737756638551,-198.693,0.000191,2]
[350272924,1737756638560,-828.26347557,0.000191,2]
[350272973,1737756640633,-8.73652443,0.000191,2]
[350272975,1737756640643,-300.0,0.000191,8]
[350272977,1737756640653,-1200.0,0.00019135,2]
[350272979,1737756640663,-68.88607305,0.00019164,2]
[350272982,1737756640682,-431.11392695,0.00019164,2]
[350272984,1737756640695,-500.0,0.0001917,2]
[350272986,1737756640705,-500.0,0.0001917,2]
[350272988,1737756640715,-500.0,0.0001917,2]
[350272990,1737756640724,-500.0,0.0001917,2]
[350272992,1737756640734,-500.0,0.0001917,2]
[350272994,1737756640744,-500.0,0.0001917,2]
[350272996,1737756640753,-500.0,0.0001917,2]
[350272998,1737756640764,-500.0,0.0001917,2]
[350273000,1737756640774,-500.0,0.0001917,2]
[350273002,1737756640785,-567.58441467,0.0001917,2]
[350273005,1737756640795,-500.0,0.0001917,2]
[350273007,1737756640804,-479.82680925,0.0001917,2]
[350273009,1737756640814,-500.0,0.0001917,2]
[350273011,1737756640824,-500.0,0.0001917,2]
[350273013,1737756640834,-500.0,0.0001917,2]
[350273015,1737756640845,-500.0,0.0001917,2]
[350273017,1737756640854,-500.0,0.0001917,2]
[350273019,1737756640864,-500.0,0.0001917,2]
[350273021,1737756640873,-500.0,0.0001917,2]
[350273023,1737756640883,-500.0,0.0001917,2]
[350273025,1737756640893,-500.0,0.0001917,2]
[350273027,1737756640903,-500.0,0.0001917,2]
[350273040,1737756641016,-500.0,0.0001917,2]
[350273042,1737756641027,-500.0,0.0001917,2]
[350273044,1737756641037,-500.0,0.0001917,2]
[350273046,1737756641047,-500.0,0.0001917,2]
[350273048,1737756641059,-500.0,0.0001917,2]
[350273050,1737756641069,-500.0,0.0001917,2]
[350273052,1737756641078,-1970.73027433,0.0001917,5]
[350273054,1737756641088,-15433.73412461,0.00019171,5]
[350273056,1737756641099,-500.0,0.00019173,2]
[350273058,1737756641109,-225.16824083,0.00019173,2]
[350273061,1737756641121,-500.0,0.00019173,2]
[350273062,1737756641131,-500.0,0.00019173,2]
[350273065,1737756641141,-500.0,0.00019173,2]
[350273067,1737756641150,-500.0,0.00019173,2]
[350273069,1737756641160,-500.72203806,0.00019173,2]
[350273071,1737756641169,-500.0,0.00019173,2]
[350273073,1737756641178,-500.0,0.00019173,2]
[350273075,1737756641187,-500.0,0.00019173,2]
[350273077,1737756641195,-500.0,0.00019173,2]
[350273078,1737756641204,-500.0,0.00019173,2]
[350273081,1737756641214,-500.0,0.00019173,2]
[350273083,1737756641225,-500.0,0.00019173,2]
[350273084,1737756641235,-500.0,0.00019173,2]
[350273087,1737756641245,-306.90318233,0.00019173,2]
[350273089,1737756641254,-500.0,0.00019173,2]
[350273091,1737756641264,-500.0,0.00019173,2]
[350273093,1737756641275,-505.12179242,0.00019177,10]
[350273095,1737756641285,-713.08708692,0.00019177,2]
[350273097,1737756641295,-160.0,0.00019177,2]
[350273099,1737756641305,-151.0,0.00019178,2]
[350273101,1737756641315,-500.0,0.00019178,2]
[350273103,1737756641326,-151.0,0.00019178,2]
[350273105,1737756641336,-500.0,0.00019178,2]
[350273107,1737756641345,-508.73379312,0.00019178,2]
[350273109,1737756641355,-500.0,0.00019178,2]
[350273111,1737756641365,-500.0,0.00019178,2]
[350273113,1737756641374,-500.0,0.00019178,2]
[350273115,1737756641384,-500.0,0.00019178,2]
[350273118,1737756641395,-501.63229707,0.00019178,2]
[350273120,1737756641405,-500.0,0.00019178,2]
[350273122,1737756641415,-500.0,0.00019178,2]
[350273124,1737756641424,-500.0,0.00019178,2]
[350273126,1737756641434,-500.0,0.00019178,2]
[350273128,1737756641443,-500.0,0.00019178,2]
[350273130,1737756641452,-500.0,0.00019178,2]
[350273132,1737756641462,-500.0,0.00019178,2]
[350273133,1737756641473,-500.0,0.00019178,2]
[350273134,1737756641483,-500.0,0.00019178,2]
[350273135,1737756641493,-500.0,0.00019178,2]
[350273136,1737756641503,-516.26,0.00019178,2]
[350273137,1737756641514,-695.84,0.00019178,2]
[350273138,1737756641524,-500.0,0.00019178,2]
[350273139,1737756641534,-500.0,0.00019178,2]
[350273140,1737756641543,-500.0,0.00019178,2]
[350273141,1737756641554,-500.0,0.00019178,2]
[350273142,1737756641564,-500.0,0.00019178,2]
[350273143,1737756641574,-500.0,0.00019178,2]
[350273144,1737756641584,-618.31968685,0.00019178,2]
[350273145,1737756641594,-266.38288378,0.00019178,2]
[350273146,1737756641603,-500.0,0.00019178,2]
[350273147,1737756641613,-500.0,0.00019178,2]
[350273148,1737756641623,-500.0,0.00019178,2]
[350273149,1737756641632,-390.85512548,0.00019178,2]
[350273150,1737756641642,-151.867547,0.00019178,2]
[350273151,1737756641652,-500.0,0.00019178,2]
[350273152,1737756641662,-500.0,0.00019178,2]
[350273153,1737756641671,-151.0,0.00019178,2]
[350273154,1737756641681,-264.44047,0.00019178,2]
[350273155,1737756641693,-500.0,0.00019178,2]
[350273156,1737756641702,-500.0,0.00019178,2]
[350273157,1737756641712,-500.0,0.00019178,2]
[350273158,1737756641721,-500.0,0.00019178,2]
[350273159,1737756641732,-500.0,0.00019178,2]
[350273160,1737756641742,-500.0,0.00019178,2]
[350273161,1737756641752,-509.30789237,0.00019178,2]
[350273162,1737756641762,-151.9016,0.00019178,2]
[350273163,1737756641773,-500.0,0.00019178,2]
[350273164,1737756641787,-500.0,0.00019178,2]
[350273165,1737756641796,-500.0,0.00019178,2]
[350273166,1737756641806,-500.0,0.00019178,2]
[350273167,1737756641816,-676.42,0.00019178,2]
[350273168,1737756641825,-503.08655204,0.00019178,2]
[350273169,1737756641835,-151.0,0.00019178,2]
[350273170,1737756641844,-151.0,0.00019178,2]
[350273171,1737756641855,-570.73,0.00019178,2]
[350273172,1737756641864,-500.0,0.00019178,2]
[350273173,1737756641874,-151.0,0.00019178,2]
[350273174,1737756641884,-151.0,0.00019178,2]
[350273175,1737756641894,-151.0,0.00019178,2]
[350273176,1737756641904,-151.0,0.00019178,2]
[350273177,1737756641913,-151.0,0.00019178,2]
[350273178,1737756641923,-151.0,0.00019178,2]
[350273179,1737756641933,-500.0,0.00019178,2]
[350273180,1737756641944,-500.0,0.00019178,2]
[350273181,1737756641954,-500.0,0.00019178,2]
[350273182,1737756641963,-500.0,0.00019178,2]
[350273183,1737756641974,-500.0,0.00019178,2]
[350273184,1737756641984,-500.0,0.00019178,2]
[350273185,1737756641994,-151.0,0.00019178,2]
[350273186,1737756642004,-151.0,0.00019178,2]
[350273187,1737756642014,-1004.51971605,0.00019178,2]
[350273188,1737756642093,-500.0,0.00019178,2]
[350273189,1737756642103,-500.0,0.00019178,2]
[350273190,1737756642113,-152.024311,0.00019178,2]
[350273191,1737756642123,-500.0,0.00019178,2]
[350273192,1737756642132,-500.0,0.00019178,2]
[350273193,1737756642142,-500.0,0.00019178,2]
[350273194,1737756642152,-500.0,0.00019178,2]
[350273195,1737756642162,-151.0,0.00019178,2]
[350273196,1737756642172,-596.86844711,0.00019178,2]
[350273197,1737756642183,-151.0,0.00019178,2]
[350273198,1737756642192,-151.0,0.00019178,2]
[350273199,1737756642202,-151.0,0.00019178,2]
[350273200,1737756642211,-151.0,0.00019178,2]
[350273201,1737756642221,-151.0,0.00019178,2]
[350273202,1737756642230,-500.0,0.00019178,2]
[350273203,1737756642239,-151.0,0.00019178,2]
[350273204,1737756642253,-151.0,0.00019178,2]
[350273205,1737756642263,-500.0,0.00019178,2]
[350273206,1737756642272,-500.0,0.00019178,2]
[350273207,1737756642281,-500.0,0.00019178,2]
[350273208,1737756642291,-500.0,0.00019178,2]
[350273209,1737756642300,-500.0,0.00019178,2]
[350273210,1737756642309,-500.0,0.00019178,2]
[350273211,1737756642319,-500.0,0.00019178,2]
[350273212,1737756642328,-517.56,0.00019178,2]
[350273213,1737756642337,-500.0,0.00019178,2]
[350273214,1737756642347,-500.0,0.00019178,2]
[350273215,1737756642363,-611.77036824,0.00019178,2]
[350273216,1737756642372,-500.0,0.00019178,2]
[350273217,1737756642381,-595.02,0.00019178,2]
[350273218,1737756642390,-500.0,0.00019178,2]
[350273219,1737756642400,-500.0,0.00019178,2]
[350273220,1737756642409,-378.36293063,0.00019178,2]
[350273221,1737756642419,-500.0,0.00019178,2]
[350273222,1737756642428,-500.0,0.00019178,2]
[350273223,1737756642437,-590.1782655,0.00019178,2]
[350273224,1737756642447,-418.03064886,0.00019178,2]
[350273225,1737756642456,-500.0,0.00019178,2]
[350273226,1737756642465,-172.14531038,0.00019178,2]
[350273227,1737756642475,-500.0,0.00019178,2]
[350273228,1737756642484,-500.0,0.00019178,2]
[350273229,1737756642493,-500.0,0.00019178,2]
[350273230,1737756642503,-500.0,0.00019178,2]
[350273231,1737756642512,-500.0,0.00019178,2]
[350273232,1737756642522,-500.0,0.00019178,2]
[350273233,1737756642532,-500.0,0.00019178,2]
[350273234,1737756642555,-500.0,0.00019178,2]
[350273235,1737756642577,-500.0,0.00019178,2]
[350273236,1737756642600,-500.0,0.00019178,2]
[350273237,1737756642623,-500.0,0.00019178,2]
[350273238,1737756642648,-500.0,0.00019178,2]
[350273239,1737756642668,-500.0,0.00019178,2]
[350273240,1737756642692,-500.0,0.00019178,2]
[350273241,1737756642709,-500.0,0.00019178,2]
[350273242,1737756642730,-151.0,0.00019178,2]
[350273243,1737756642753,-691.04,0.00019178,2]
[350273244,1737756642778,-151.0,0.00019178,2]
[350273245,1737756642804,-151.0,0.00019178,2]
[350273246,1737756642824,-151.0,0.00019178,2]
[350273247,1737756642845,-500.0,0.00019178,2]
[350273248,1737756642864,-151.0,0.00019178,2]
[350273249,1737756642881,-500.0,0.00019178,2]
[350273250,1737756642898,-151.0,0.00019178,2]
[350273251,1737756642917,-214.43047,0.00019178,2]
[350273253,1737756642936,-500.0,0.00019178,2]
[350273255,1737756642954,-500.0,0.00019178,2]
[350273256,1737756642972,-514.16207308,0.00019178,2]
[350273257,1737756642989,-500.0,0.00019178,2]
[350273258,1737756643006,-500.0,0.00019178,2]
[350273259,1737756643022,-547.87103451,0.00019178,2]
[350273260,1737756643047,-500.0,0.00019178,2]
[350273261,1737756643063,-500.0,0.00019178,2]
[350273262,1737756643079,-500.0,0.00019178,2]
[350273263,1737756643095,-500.0,0.00019178,2]
[350273265,1737756643114,-501.83115626,0.00019178,2]
[350273267,1737756643131,-500.0,0.00019178,2]
[350273270,1737756643148,-466.93887757,0.00019178,2]
[350273272,1737756643166,-500.0,0.00019178,2]
[350273275,1737756643183,-500.0,0.00019178,2]
[350273279,1737756643199,-500.0,0.00019178,2]
[350273282,1737756643215,-500.0,0.00019178,2]
[350273285,1737756643231,-500.0,0.00019178,2]
[350273288,1737756643246,-500.0,0.00019178,2]
[350273289,1737756643262,-582.32,0.00019178,2]
[350273290,1737756643277,-500.0,0.00019178,2]
[350273291,1737756643299,-500.0,0.00019178,2]
[350273292,1737756643315,-502.42080201,0.00019178,2]
[350273293,1737756643331,-500.0,0.00019178,2]
[350273294,1737756643348,-500.0,0.00019178,2]
[350273295,1737756643358,-635.48991678,0.00019178,2]
[350273296,1737756643367,-500.0,0.00019178,2]
[350273297,1737756643377,-500.0,0.00019178,2]
[350273298,1737756643514,-502.48009893,0.00019178,2]
[350273299,1737756643532,-500.0,0.00019178,2]
[350273300,1737756643551,-500.0,0.00019178,2]
[350273301,1737756643561,-157.431518,0.00019178,2]
[350273302,1737756643570,-500.0,0.00019178,2]
[350273303,1737756643580,-500.0,0.00019178,2]
[350273304,1737756643588,-500.0,0.00019178,2]
[350273305,1737756643596,-500.0,0.00019178,2]
[350273306,1737756643605,-500.0,0.00019178,2]
[350273307,1737756643615,-500.0,0.00019178,2]
[350273308,1737756643626,-151.0,0.00019178,2]
[350273309,1737756643636,-500.0,0.00019178,2]
[350273310,1737756643645,-723.13,0.00019178,2]
[350273311,1737756643656,-500.0,0.00019178,2]
[350273312,1737756643665,-500.0,0.00019178,2]
[350273313,1737756643675,-783.88,0.00019178,2]
[350273314,1737756643686,-500.0,0.00019178,2]
[350273315,1737756643696,-500.0,0.00019178,2]
[350273316,1737756643708,-500.0,0.00019178,2]
[350273317,1737756643717,-500.0,0.00019178,2]
[350273318,1737756643729,-500.0,0.00019178,2]
[350273319,1737756643739,-500.0,0.00019178,2]
[350273320,1737756643748,-500.0,0.00019178,2]
[350273321,1737756643758,-500.0,0.00019178,2]
[350273322,1737756643768,-500.0,0.00019178,2]
[350273323,1737756643778,-500.0,0.00019178,2]
[350273324,1737756643792,-200.0,0.00019178,2]
[350273325,1737756643802,-1054.18,0.00019178,2]
[350273326,1737756643811,-500.0,0.00019178,2]
[350273327,1737756643821,-500.0,0.00019178,2]
[350273328,1737756643831,-500.0,0.00019178,2]
[350273329,1737756643840,-500.0,0.00019178,2]
[350273330,1737756643850,-500.0,0.00019178,2]
[350273331,1737756643859,-1500.88,0.00019178,2]
[350273332,1737756643869,-500.0,0.00019178,2]
[350273333,1737756643878,-500.0,0.00019178,2]
[350273334,1737756643888,-500.0,0.00019178,2]
[350273335,1737756643897,-237.12498443,0.00019178,2]
[350273336,1737756643907,-500.0,0.00019178,2]
[350273337,1737756643916,-500.0,0.00019178,2]
[350273338,1737756643925,-601.43069442,0.00019178,2]
[350273339,1737756643935,-500.0,0.00019178,2]
[350273340,1737756643944,-500.0,0.00019178,2]
[350273341,1737756643953,-500.0,0.00019178,2]
[350273342,1737756643963,-500.0,0.00019178,2]
[350273343,1737756643972,-500.0,0.00019178,2]
[350273344,1737756643982,-507.34519939,0.00019178,2]
[350273345,1737756643991,-500.0,0.00019178,2]
[350273346,1737756644000,-500.0,0.00019178,2]
[350273347,1737756644009,-500.0,0.00019178,2]
[350273348,1737756644019,-500.0,0.00019178,2]
[350273349,1737756644029,-734.48,0.00019178,2]
[350273350,1737756644041,-500.0,0.00019178,2]
[350273351,1737756644051,-505.22141006,0.00019178,2]
[350273352,1737756644059,-500.0,0.00019178,2]
[350273353,1737756644069,-500.0,0.00019178,2]
[350273354,1737756644078,-531.25337721,0.00019178,2]
[350273355,1737756644087,-500.0,0.00019178,2]
[350273356,1737756644097,-500.0,0.00019178,2]
[350273357,1737756644106,-1449.84,0.00019178,2]
[350273358,1737756644115,-500.0,0.00019178,2]
[350273359,1737756644125,-629.33,0.00019178,2]
[350273360,1737756644134,-902.37,0.00019178,2]
[350273361,1737756644144,-512.2123169,0.00019178,2]
[350273362,1737756644155,-500.0,0.00019178,2]
[350273363,1737756644165,-500.0,0.00019178,2]
[350273364,1737756644176,-500.0,0.00019178,2]
[350273365,1737756644187,-636.24,0.00019178,2]
[350273366,1737756644197,-567.38,0.00019178,2]
[350273367,1737756644207,-506.95106983,0.00019178,2]
[350273368,1737756644217,-500.0,0.00019178,2]
[350273369,1737756644227,-500.0,0.00019178,2]
[350273370,1737756644237,-500.0,0.00019178,2]
[350273371,1737756644246,-500.0,0.00019178,2]
[350273372,1737756644256,-500.0,0.00019178,2]
[350273373,1737756644266,-500.0,0.00019178,2]
[350273374,1737756644276,-500.0,0.00019178,2]
[350273375,1737756644290,-500.0,0.00019178,2]
[350273376,1737756644300,-500.0,0.00019178,2]
[350273377,1737756644310,-674.53,0.00019178,2]
[350273378,1737756644321,-501.83553127,0.00019178,2]
[350273379,1737756644331,-500.0,0.00019178,2]
[350273380,1737756644342,-500.0,0.00019178,2]
[350273381,1737756644352,-500.0,0.00019178,2]
[350273382,1737756644362,-500.0,0.00019178,2]
[350273383,1737756644372,-537.82,0.00019178,2]
[350273384,1737756644382,-500.0,0.00019178,2]
[350273385,1737756644392,-500.0,0.00019178,2]
[350273386,1737756644401,-500.0,0.00019178,2]
[350273387,1737756644411,-500.0,0.00019178,2]
[350273388,1737756644421,-500.0,0.00019178,2]
[350273389,1737756644431,-500.0,0.00019178,2]
[350273390,1737756644440,-500.0,0.00019178,2]
[350273391,1737756644450,-500.0,0.00019178,2]
[350273392,1737756644461,-151.0,0.00019178,2]
[350273393,1737756644470,-151.0,0.00019178,2]
[350273394,1737756644480,-151.0,0.00019178,2]
[350273395,1737756644490,-757.4,0.00019178,2]
[350273396,1737756644499,-500.0,0.00019178,2]
[350273397,1737756644509,-500.0,0.00019178,2]
[350273398,1737756644518,-500.0,0.00019178,2]
[350273399,1737756644529,-151.0,0.00019178,2]
[350273400,1737756644545,-500.0,0.00019178,2]
[350273401,1737756644555,-151.0,0.00019178,2]
[350273402,1737756644565,-151.0,0.00019178,2]
[350273403,1737756644575,-151.0,0.00019178,2]
[350273404,1737756644584,-500.0,0.00019178,2]
[350273405,1737756644594,-228.492434,0.00019178,2]
[350273407,1737756644604,-773.22,0.00019178,2]
[350273409,1737756644614,-500.0,0.00019178,2]
[350273410,1737756644624,-154.07367525,0.00019178,2]
[350273411,1737756644634,-500.0,0.00019178,2]
[350273412,1737756644643,-620.9,0.00019178,2]
[350273414,1737756644653,-891.04,0.00019178,2]
[350273415,1737756644663,-500.0,0.00019178,2]
[350273416,1737756644673,-151.0,0.00019178,2]
[350273417,1737756644684,-151.0,0.00019178,2]
[350273418,1737756644693,-151.0,0.00019178,2]
[350273419,1737756644706,-151.0,0.00019178,2]
[350273420,1737756644717,-500.0,0.00019178,2]
[350273421,1737756644727,-151.0,0.00019178,2]
[350273423,1737756644737,-500.0,0.00019178,2]
[350273425,1737756644747,-151.0,0.00019178,2]
[350273427,1737756644756,-500.0,0.00019178,2]
[350273429,1737756644766,-281.76531,0.00019178,2]
[350273431,1737756644776,-500.0,0.00019178,2]
[350273433,1737756644790,-500.0,0.00019178,2]
[350273435,1737756644799,-500.0,0.00019178,2]
[350273437,1737756644808,-720.57,0.00019178,2]
[350273439,1737756644818,-500.0,0.00019178,2]
[350273440,1737756644827,-500.0,0.00019178,2]
[350273442,1737756644837,-199.57844648,0.00019178,2]
[350273444,1737756644846,-151.0,0.00019178,2]
[350273446,1737756644856,-151.0,0.00019178,2]
[350273448,1737756644867,-151.0,0.00019178,2]
[350273450,1737756644877,-500.0,0.00019178,2]
[350273453,1737756644887,-151.0,0.00019178,2]
[350273455,1737756644897,-151.0,0.00019178,2]
[350273457,1737756644906,-151.0,0.00019178,2]
[350273459,1737756644915,-500.0,0.00019178,2]
[350273460,1737756644925,-500.0,0.00019178,2]
[350273462,1737756644935,-500.0,0.00019178,2]
[350273465,1737756644945,-500.0,0.00019178,2]
[350273467,1737756644955,-500.0,0.00019178,2]
[350273469,1737756644965,-505.08942528,0.00019178,2]
[350273471,1737756644975,-1367.49,0.00019178,2]
[350273473,1737756644985,-500.0,0.00019178,2]
[350273475,1737756644997,-500.0,0.00019178,2]
[350273477,1737756645008,-500.0,0.00019178,2]
[350273479,1737756645018,-163.26291,0.00019178,2]
[350273481,1737756645028,-163.26291,0.00019178,2]
[350273483,1737756645039,-163.26291,0.00019178,2]
[350273485,1737756645049,-163.26291,0.00019178,2]
[350273487,1737756645059,-163.26291,0.00019178,2]
[350273489,1737756645069,-163.26291,0.00019178,2]
[350273491,1737756645078,-163.26291,0.00019178,2]
[350273493,1737756645088,-163.26291,0.00019178,2]
[350273495,1737756645098,-163.26291,0.00019178,2]
[350273497,1737756645108,-500.0,0.00019178,2]
[350273499,1737756645117,-163.26291,0.00019178,2]
[350273501,1737756645127,-163.26291,0.00019178,2]
[350273503,1737756645136,-163.26291,0.00019178,2]
[350273505,1737756645146,-163.26291,0.00019178,2]
[350273517,1737756645239,-163.26291,0.00019178,2]
[350273519,1737756645250,-500.0,0.00019178,2]
[350273522,1737756645260,-500.0,0.00019178,2]
[350273524,1737756645270,-151.0,0.00019178,2]
[350273526,1737756645281,-151.0,0.00019178,2]
[350273528,1737756645293,-151.0,0.00019178,2]
[350273530,1737756645303,-151.0,0.00019178,2]
[350273532,1737756645312,-151.0,0.00019178,2]
[350273534,1737756645322,-153.994862,0.00019178,2]
[350273536,1737756645331,-500.0,0.00019178,2]
[350273538,1737756645341,-500.0,0.00019178,2]
[350273540,1737756645351,-500.0,0.00019178,2]
[350273542,1737756645361,-896.966713,0.00019178,2]
[350273544,1737756645370,-500.0,0.00019178,2]
[350273546,1737756645379,-509.92873458,0.00019178,2]